Cogmind - Beta 14 @@@ ROGUE MODE // 2024.11.14 @ 12:38:42 Player: BEEEEES Result: Destroyed by HM-6TC(R) with Subdweller Laser Performance ------------- Evolutions (0) 0 Regions Visited (2) 400 Robots Destroyed (3) 15 Value Destroyed (102) 102 Prototype IDs (0) 0 Alien Tech Used (0) 0 Bonus (0) 0 TOTAL SCORE: 517 Bonus ------- None Cogmind --------- Core Integrity 0/250 Matter 295/300 Energy 100/100 System Corruption 0% Temperature Cool (6) Movement Core (1350) Ox26 Location -10/Subcaves Parts ------- > --- POWER (1) -------- (None) > --- PROPULSION (2) --- (None) > --- UTILITY (2) ------ Huge Storage Unit Signal Interpreter > --- WEAPON (2) ------- (None) > --- INVENTORY (25) --- Ion Engine Aluminum Leg Aluminum Leg Aluminum Leg EM Pulse Gun Light Assault Rifle Peak State ------------ > --- POWER ------------ Light Ion Engine > --- PROPULSION ------- Light Treads Light Treads > --- UTILITY ---------- Small Storage Unit Huge Storage Unit > --- WEAPON ----------- Assault Rifle Light Assault Rifle > --- INVENTORY -------- Ion Engine Aluminum Leg Aluminum Leg EM Pulse Gun [Rating: 7] Favorites ----------- Power Light Ion Engine Engine Light Ion Engine Propulsion Light Treads Treads Light Treads Leg Aluminum Leg Utility Huge Storage Unit Storage Huge Storage Unit Processor Signal Interpreter Weapon Light Assault Rifle Ballistic Gun Light Assault Rifle Build | -11 -10 -10 ------- Run | Yrd Mat Sub Slots Evolved . | . . . Power . | . . . Propulsion . | . . . Utility . | . . . Weapon . | . . . Parts Attached 10 | 6 4 . Power 1 | 1 . . Engine 1 | 1 . . Core . | . . . Reactor . | . . . Propulsion 4 | 2 2 . Treads 2 | 2 . . Leg 2 | . 2 . Wheel . | . . . Hover . | . . . Flight . | . . . Utility 3 | 1 2 . Device . | . . . Storage 2 | 1 1 . Processor 1 | . 1 . Hackware . | . . . Protection . | . . . Artifact . | . . . Weapon 2 | 2 . . Energy Gun . | . . . Energy Cannon . | . . . Ballistic Gun 2 | 2 . . Ballistic Cannon . | . . . Launcher . | . . . Special Weapon . | . . . Impact Weapon . | . . . Slashing Weapon . | . . . Piercing Weapon . | . . . Special Melee Weapon . | . . . Unidentified Prototypes . | . . . Parts Lost 5 | . . 5 Power 1 | . . 1 Propulsion 2 | . . 2 Utility . | . . . Weapon 2 | . . 2 Highest Loss Streak 5 | . . 5 To Critical Strikes . | . . . Average Slot Usage (%) 88 | . 85 93 Engine 13 | . 14 12 Treads 13 | . 23 . Leg 13 | . 4 25 Storage 14 | . 14 14 Processor 5 | . . 14 Ballistic Gun 26 | . 28 25 Peak Build Rating 7 | 6 7 7 Average Rating 6 | 5 5 6 On Entrance 4 | . 6 7 Naked Turns . | . . . Heaviest Build 86 | 11 86 86 Greatest Support 40 | 40 40 20 Greatest Overweight (x) 27 | . 4 27 Average Overweight (x) 2 | . 2 4 Largest Inventory Capacity 25 | 8 25 25 Average Capacity 21 | 7 23 25 Most Carried 9 | 4 9 6 Average Carried 5 | 2 6 6 Final Capacity 25 | 8 25 25 Final Carried 6 | 4 6 6 Class Distribution -------------------- 100% | Mutant Dominant Class ---------------- Mutant | -10/Materials Mutant | -10/Subcaves Resources | -11 -10 -10 ----------- Run | Yrd Mat Sub Matter Collected 326 | 206 120 . Remotely . | . . . Salvage Created 120 | . 120 . Parts 6 | . 6 . Haulers Intercepted . | . . . Recyclers Shooed . | . . . Parts Field Recycled . | . . . Retrieved Matter . | . . . Parts Self-Destructed . | . . . Prevented . | . . . Kills | -11 -10 -10 ------- Run | Yrd Mat Sub Combat Hostiles Destroyed 3 | . 3 . Guns 3 | . 3 . Classes Destroyed 1 | . 1 . Grunt 3 | . 3 . Best Kill Streak 2 | . 2 . Combat Bots Only 2 | . 2 . Max Kills in Single Turn 1 | . 1 . Gunslinging . | . . . Exploded . | . . . Melee . | . . . Uniques/NPCs Destroyed . | . . . Combat | -11 -10 -10 -------- Run | Yrd Mat Sub Hostile Shots Fired 66 | . 31 35 Missed 12 | . 6 6 Damage Taken 902 | . 279 623 Core 250 | . 46 204 Absorbed by Shields . | . . . Core Remaining (%) 100 | 100 . . Volleys Fired 15 | . 15 . Largest 2 | . 2 . Hottest 40 | . 40 . Shots Fired 30 | . 30 . Gun 30 | . 30 . Cannon . | . . . Launcher . | . . . Special . | . . . Kinetic 30 | . 30 . Thermal . | . . . Explosive . | . . . Electromagnetic . | . . . Robot Hit Streak 5 | . 5 . Robot Miss Streak 3 | . 3 . Penetration Max . | . . . Secondary Targets 1 | . 1 . Max Gunslinging Chain 1 | . 1 . Shots Hit Robots 18 | . 18 . Core Hits 6 | . 6 . Critical Kills . | . . . Critical Parts Destroyed . | . . . Critical Strikes . | . . . Melee Attacks . | . . . Impact . | . . . Slashing . | . . . Piercing . | . . . Sneak Attacks . | . . . Combat Hostiles . | . . . Follow-up Attacks . | . . . Damage Inflicted 189 | 5 184 . Guns 184 | . 184 . Cannons . | . . . Explosions . | . . . Melee . | . . . Ramming 5 | 5 . . Kinetic 184 | . 184 . Thermal . | . . . Explosive . | . . . Electromagnetic . | . . . Impact . | . . . Slashing . | . . . Piercing . | . . . Highest Corruption . | . . . Average Corruption . | . . . Corruption Purged . | . . . Corruption Blocked . | . . . Overload Shots . | . . . Overflow Damage . | . . . Projectiles . | . . . Explosions . | . . . Melee . | . . . Knockbacks . | . . . Impact . | . . . Kinetic . | . . . Secondary . | . . . Self-Inflicted Damage . | . . . Shots . | . . . Rammed 1 | 1 . . Targets Rammed 1 | 1 . . Kicked . | . . . Crushed . | . . . Highest Temperature 6 | . 6 . Average Temperature 6 | . 6 . Received Heat Transfer 222 | . 150 72 Siege Activations . | . . . Robots Corrupted . | . . . Combat Hostiles . | . . . Parts Fried . | . . . Impact Corruptions . | . . . Robots Melted . | . . . Combat Hostiles . | . . . Parts Melted . | . . . Heat Transferred . | . . . Parts Sabotaged . | . . . Parts Stolen . | . . . Parts Stripped . | . . . Power Chain Reactions . | . . . Alert | -11 -10 -10 ------- Run | Yrd Mat Sub Peak Influence 100 | . 100 . Initial . | . . . Average 43 | . 56 . Maximum Alert Level . | . . . Low Security (%) 100 | 100 100 . Level 1 . | . . . Level 2 . | . . . Level 3 . | . . . Level 4 . | . . . Level 5 . | . . . High Security . | . . . Max Security . | . . . Squads Dispatched 1 | . 1 . Investigation . | . . . Extermination . | . . . Reinforcement 1 | . 1 . Assault . | . . . Garrison . | . . . Intercept . | . . . Searches Triggered . | . . . Construction Impeded . | . . . Haulers Reinforced . | . . . Active Scanning Responses . | . . . Cargo Convoy Interrupts . | . . . Stealth | -11 -10 -10 --------- Run | Yrd Mat Sub Distress Signals 1 | . 1 . Communications Jammed . | . . . Distress Signals . | . . . Times Spotted 19 | . 8 11 Peak Tracking Total 11 | . 3 11 Tactical Retreats . | . . . Traps | -11 -10 -10 ------- Run | Yrd Mat Sub Traps Triggered . | . . . Indirectly . | . . . Trap Hack Attempts . | . . . Triggered . | . . . Disarmed . | . . . Reprogrammed . | . . . Reused . | . . . Traps Extracted . | . . . Installed . | . . . Triggered . | . . . Machines | -11 -10 -10 ---------- Run | Yrd Mat Sub Machines Disabled . | . . . Max in Single Turn . | . . . Machines Repaired . | . . . Machines Dismantled . | . . . Machines Sabotaged . | . . . Overloaded Fab Kills . | . . . Hacking | -11 -10 -10 --------- Run | Yrd Mat Sub Machines Accessed . | . . . Terminals . | . . . Fabricators . | . . . Repair Stations . | . . . Recycling Units . | . . . Scanalyzers . | . . . Garrison Access . | . . . Total Hacks . | . . . Successful . | . . . Failed . | . . . Catastrophic . | . . . Database Lockouts . | . . . Manual . | . . . Terminals . | . . . Fabricators . | . . . Repair Stations . | . . . Recycling Units . | . . . Scanalyzers . | . . . Garrison Access . | . . . Terminal Hacks . | . . . Fabricator Hacks . | . . . Repair Station Hacks . | . . . Recycling Unit Hacks . | . . . Scanalyzer . | . . . Garrison Access Hacks . | . . . Unauthorized Hacks . | . . . Terminals . | . . . Fabricators . | . . . Repair Stations . | . . . Recycling Units . | . . . Scanalyzers . | . . . Garrison Access . | . . . Data Cores Recovered . | . . . Used . | . . . Hacking Detections . | . . . Full Trace Events . | . . . Feedback Events . | . . . Feedback Blocked . | . . . Robot Schematics Acquired . | . . . Robots Built . | . . . Authchips . | . . . Time . | . . . Total Robot Build Rating . | . . . Part Schematics Acquired . | . . . Parts Built . | . . . Authchips . | . . . Time . | . . . Total Part Build Rating . | . . . Parts Repaired . | . . . Time . | . . . Parts Recycled . | . . . Recycled Matter . | . . . Retrieved Matter . | . . . Retrieved Components . | . . . Parts Scanalyzed . | . . . Part Schematics Acquired . | . . . Parts Damaged . | . . . Bothacking | -11 -10 -10 ------------ Run | Yrd Mat Sub Used RIF Installer . | . . . Robots Hacked . | . . . Non-combat . | . . . Combat . | . . . Robot Hacks Applied . | . . . Relay Couplers Released . | . . . Fabnet Peak Effective % . | . . . Robots Rewired . | . . . Allies Hacked . | . . . Hacks Repelled . | . . . Allies | -11 -10 -10 -------- Run | Yrd Mat Sub Total Allies . | . . . Largest Group . | . . . Highest-Rated Group . | . . . Highest-Rated Ally . | . . . Total Orders . | . . . Ally Attacks . | . . . Total Damage . | . . . Kills . | . . . Allies Corrupted . | . . . Allies Melted . | . . . Intel | -11 -10 -10 ------- Run | Yrd Mat Sub Robot Analysis Total . | . . . Derelict Logs Recovered . | . . . Drone Launches . | . . . Drone Recoveries . | . . . Exploration | -11 -10 -10 ------------- Run | Yrd Mat Sub Turns Passed 641 | 97 321 223 Spaces Moved 197 | 58 86 53 Core 10 | 8 . 2 Treads 122 | 50 72 . Legs 65 | . 14 51 Wheels . | . . . Hover . | . . . Flight . | . . . Fastest Speed 50 | 50 160 400 Average Speed 298 | 144 316 436 Slowest Speed 1400 | 160 400 1400 Overloaded Moves . | . . . Propulsion Burnouts . | . . . Robots Hopped . | . . . Cave-ins Triggered . | . . . Exploration Rate (%) 5 | 5 9 3 Regions Visited 2 Branch Regions 1 Pre-discovered Areas . | . . . Known Exits Taken 1 | . 1 . Unknown Exits Taken 1 | 1 . . Scrap Searched . | . . . Spaces Dug . | . . . Terrain Destroyed . | . . . Melee . | . . . Projectile . | . . . AOE . | . . . Terrain Rammed . | . . . Walls Destroyed . | . . . Machines Disabled . | . . . Actions | -11 -10 -10 --------- Run | Yrd Mat Sub Total 233 | 68 112 53 Wait . | . . . Move 195 | 57 85 53 Hop . | . . . Pick Up 9 | 4 5 . Fast Attach 7 | 6 1 . Attach 3 | . 3 . Detach . | . . . Swap . | . . . Drop 3 | . 3 . Fire 15 | . 15 . Melee . | . . . Ram . | . . . Kick . | . . . Crush 1 | 1 . . Escape Stasis . | . . . Rewire . | . . . Trap . | . . . Miscellaneous . | . . . Route ------- -11/Scrapyard -10/Materials -10/Subcaves History --------- Turn | Location | Event 12 | -11/Scrapyard | Discovered new exit (range 13) 98 | -11/Scrapyard | Entered Materials 312 | -10/Materials | Build established: Mutant 314 | -10/Materials | Discovered new exit (range 11) 419 | -10/Materials | Identified exit to Subcaves 419 | -10/Materials | Entered Subcaves 605 | -10/Subcaves | Ambushed by swarm of Subdwellers 608 | -10/Subcaves | Ambushed by Subdwellers from Twisted Machinery 608 | -10/Subcaves | Ambushed by Subdwellers from Twisted Machinery 608 | -10/Subcaves | Ambushed by Subdwellers from Twisted Machinery 608 | -10/Subcaves | Ambushed by Subdwellers from Twisted Machinery 639 | -10/Subcaves | Core integrity fell below 50% 641 | -10/Subcaves | Core integrity fell below 20% 642 | -10/Subcaves | Destroyed by HM-6TC(R) with Subdweller Laser Last Messages --------------- Aluminum Leg destroyed. 1Q-Q85(h) destroyed. J6-V4M(R) suffers critical hit (Burn). Aluminum Leg destroyed. J6-V4M(R) suffers critical hit (Burn). Assault Rifle destroyed. Subatomizers dissect the Sub. Monowheel. HM-6TC(R) affixes Scrap Shield Fragment to Scrap Shield. TL-E0H(g) destroyed. Lgt. Assault Rifle destroyed. PR-58Y(g) suffers critical hit (Destroy). J6-V4M(R) destroyed. HM-6TC(R) affixes Scrap Shield Fragment to Scrap Shield. X3-7Z8(R) destroyed. 9X-EWR(g) suffers critical hit (Destroy). 9X-EWR(g) destroyed. Subatomizers dissect the Sub. Monowheel. PR-58Y(g) destroyed. Map ----- +----------------------------------------------------+ | ?????????????????????????????????????????? | | ?????????????????????????????????????????? | | ?????????????????????????????????????????? | | ?????????????????????????????????????????? | | ?????????????????????????????????????????? | | ????????????????????????????????###??????? | | ????????????????????????????????# #####??? | | ????????????????????????????????# #??? | | ???????????????????????????????## #??? | | ???????????????????????????????# #??? | | ??????????????????????????????## ##?## | | ??????????????????????????????# ! ## # | | ??????????????????????????????## ## # | | ??????????????????????????????# ## | | ??????????????????????????????## ## | | ??????????????????????????????# "##? | | ??????????????????????????????# """#?? | | ?????????????????????????###?## " ##?? | | ?????????????????????###?# ### "" #??? | | ?????????????????????# #?# "#######??? | | ????????????????????## ### "" # ### #?? | | ??????????????###?### ## " | | ??????????????# ## ""? | | ??????????????# ##### ### ### | | ??????????????# ######???####??##????? | | ??????????????# @%##????????????????????? | | ??????????????#!!=!#?????????????????????? | | ??????????????##%&%#?????????????????????? | | ???????????????#RR=##????????????????????? | | ???????????????#!RRR#????????????????????? | | ???????????????#R*!##????????????????????? | | ???????????????#==&! ????????????????????? | | ??????????????#"%%% ##???????????????????? | | ??????????????##&* ##????????????????????? | | ???????????????!= ##?????????????????????? | | ??????????????## R#??????????????????????? | | ???????????????# #??????????????????????? | | ???????????????# ??????????????????????? | | ???????????????# ??????????????????????? | | ???????????????# ??????????????????????? | | ???????????????# ??????????????????????? | | ???????????????# ??????????????????????? | | ??????????????? ??????????????????????? | | ??????????????? ??????????????????????? | | ???????????????? ??????????????????????? | | ?????????????????????????????????????????? | | ?????????????????????????????????????????? | | ?????????????????????????????????????????? | | ?????????????????????????????????????????? | | ?????????????????????????????????????????? | +----------------------------------------------------+ Best States ------------- Heat Dissipation 25 Energy Generation 10 Energy Capacity 125 Matter Stores 300 Matter Capacity 300 Sight Range 16 Terrain Scan Density 10 Evasion (%) 50 Recoil Reduction 2 Item Schematics ----------------- None Robot Schematics ------------------ None Fabricated ------------ Nothing Alien Tech Used ----------------- None Achievements -------------- None Challenges ------------ None Game ------ Seed JunkSapperDeflector Manual? 0 Play Time 00:05:39 Cumulative 4.6 hours Start 2024.11.14 @ 12:34:00 End 2024.11.14 @ 12:38:42 Sessions 1 Manual Loads 0 Difficulty Rogue Special Mode None Game No. 9 Rogue 6 Adventurer 3 Explorer 0 Win Type - Total 0 Types 0/0/0/0/0/0/0/0/0 Lore% 3 Gallery% 10 Achievement% 10 Wizard Run 0 Options --------- Layout 1 ASCII 0 Keyboard 0 Movement Arrows Keybinds 0 Fullscreen 1 Font 24/Smallcaps Map View 50x35 Zoom Use 0% Tactical HUD 0 Map Filters NONE Filters NONE Steam 1 RUN: 381332a3-7376-472e-b548-fc8f339b5cb9